[Event "20th Delhi GM Open 2023"]
[Site "New Delhi"]
[Date "2023.03.23"]
[Round "1.1"]
[White "Tapojit Majumdar"]
[Black "Sethuraman, S.P."]
[Result "0-1"]
[ECO "B72"]
[WhiteElo "1234"]
[BlackElo "2639"]
[Annotator "TA"]
[PlyCount "50"]
[EventDate "2023.03.23"]
[EventType "swiss"]
[EventCountry "IND"]
[SourceTitle "playchess.com"]
[Source "ChessBase"]
[SourceQuality "1"]
[TimeControl "5400+30"]

{[%evp 14,50,19,8,64,56,60,62,67,54,79,57,60,0,0,0,0,-189,-168,-187,-183,-163,-160,-195,-72,-67,-66,-148,-144,-127,-132,-123,-105,-165,-136,-683,-673,-1031,-1126]} 1. e4 {[%emt 0:00:03]} c5 {[%emt 0:00:22]} 2. Nf3 {[%emt 0:00:10]} d6 {[%emt 0:00:09]} 3. d4 {[%emt 0:00:05]} cxd4 {[%emt 0:00:05]} 4. Nxd4 {[%emt 0:00:06]} Nf6 {[%emt 0:00:08]} 5. Nc3 {[%emt 0:00:10]} Nc6 {[%emt 0:00:26]} 6. Be2 {[%emt 0:01:42]} g6 {[%emt 0:00:23]} 7. Be3 {[%emt 0:00:39]} Bg7 {[%emt 0:00:07]} 8. f3 {[%emt 0:00:46]} Bd7 {[%emt 0:00:30] B72: Sicilian Dragon: 6 Be3, lines with h3+Bc4 and sidelines.} (8... O-O $11) 9. Qd2 $14 {[%emt 0:00:29]} Rc8 {[%emt 0:00:48]} 10. O-O-O {[%emt 0:03:24]} h5 {[%emt 0:00:18] White is slightly better.} 11. Kb1 {[%emt 0:02:02]} a6 {[%emt 0:01:47]} 12. Nb3 {[%emt 0:03:59]} b5 {[%emt 0:01:02][%cal Bb7b5,Bb5c4,Bc4c3][%mdl 32]} 13. Nd5 {[%emt 0:08:00]} ({White should play} 13. Rhe1 $14) 13... Nxd5 $11 {[%emt 0:01:50]} 14. exd5 {[%emt 0:00:13]} ({Much worse is} 14. Qxd5 Nb4 15. Qb7 Rb8 $19) 14... Ne5 {[%emt 0:00:03] [#]} 15. h4 $146 {[%emt 0:09:21]} (15. Bd4 $11 {and White has nothing to worry.}) ({Predecessor:} 15. Bd4 Bf5 16. Rc1 O-O 17. g4 hxg4 18. fxg4 Be4 19. Rhf1 Bxd5 20. Bxe5 dxe5 21. Qg5 Bxb3 22. axb3 {1-0 Shvetzov,M (1790)-Kaverin,N Zhukovsky Cup 2008 (6)}) 15... Nc4 $19 {[%emt 0:00:27]} 16. Bxc4 {[%emt 0:01:18]} bxc4 {[%emt 0:00:06]} 17. Nd4 {[%emt 0:01:21] [#]} c3 $1 {[%emt 0:00:26][%mdl 512]} 18. bxc3 {[%emt 0:00:26]} (18. Qf2 cxb2) 18... Qa5 {[%emt 0:00:16]} (18... Qc7 $19 {[%cal Oe8g8] and Black stays clearly on top. And now ...0-0! would win.} 19. Bg5 Qb7+ 20. Ka1 Qxd5) 19. Nb3 $17 {[%emt 0:01:10]} Qxc3 {[%emt 0:04:39][%csl Gg7][%cal Rc3b2]} 20. Bd4 {[%emt 0:00:55]} (20. Qxc3 $15 Bxc3 21. Bd4) 20... Bxd4 $40 {[%emt 0:00:36][%mdl 128] White is in trouble.} 21. Nxd4 {[%emt 0:00:27]} Qc4 {[%emt 0:04:55]} ({Not} 21... Rb8+ 22. Nb3 Qf6 23. Qg5 $15) 22. Nb3 {[%emt 0:00:44]} a5 {[%emt 0:01:12] Black is more active.} 23. Nxa5 {[%emt 0:04:29]} (23. Rde1 $17) 23... Qa4 {[%emt 0:01:19] Threatens to win with ...Ra8.} 24. Rc1 $2 {[%emt 0:02:19][%mdl 8192]} (24. Rhe1 $17 Ra8 25. Qc3) 24... Ra8 $19 {[%emt 0:00:25]} 25. Qc3 {[%emt 0:00:22][%cal Rc3h8] [#]} O-O {[%emt 0:00:12] Weighted Error Value: White=0.84/Black=0.16 (very precise)} (25... Qxa5 $2 26. Qxh8#) 0-1

[Event "20th Delhi GM Open 2023"]
[Site "New Delhi"]
[Date "2023.03.23"]
[Round "1.2"]
[White "Aravindh, Chithambaram VR."]
[Black "Giridharan M"]
[Result "1-0"]
[ECO "C60"]
[WhiteElo "2607"]
[BlackElo "1233"]
[Annotator "TA"]
[PlyCount "51"]
[EventDate "2023.03.23"]
[EventType "swiss"]
[EventCountry "IND"]
[SourceTitle "playchess.com"]
[Source "ChessBase"]
[SourceQuality "1"]
[TimeControl "5400+30"]

{[%evp 14,51,32,17,19,22,41,36,27,29,35,28,31,28,29,25,36,60,64,54,77,66,83,110,81,66,161,176,326,330,288,152,1051,1087,2125,2067,29993,29994,29994,29995]} 1. e4 {[%emt 0:00:05]} e5 {[%emt 0:00:24]} 2. Nf3 {[%emt 0:00:07]} Nc6 {[%emt 0:00:14]} 3. Bb5 {[%emt 0:00:09]} g6 {[%emt 0:00:40]} 4. c3 {[%emt 0:00:35]} Bg7 {[%emt 0:01:25]} 5. d4 {[%emt 0:00:17]} exd4 {[%emt 0:00:09]} 6. cxd4 {[%emt 0:00:12]} a6 {[%emt 0:04:34]} 7. Ba4 {[%emt 0:02:52]} Nge7 {[%emt 0:01:43]} 8. O-O {[%emt 0:02:05]} b5 {[%emt 0:04:15] C60: Ruy Lopez: Unusual Black 3rd moves and 3...g6.} 9. Bc2 {[%emt 0:01:12]} d6 {[%emt 0:02:42]} 10. h3 {[%emt 0:03:48] Against Bg4} O-O {[%emt 0:01:33] White is slightly better.} 11. Nc3 {[%emt 0:00:11]} Na5 {[%emt 0:08:23][%cal Bc6a5,Ba5c4,Bc4a3][%mdl 32]} 12. Re1 {[%emt 0:15:17]} c5 {[%emt 0:11:43]} 13. Bg5 {[%emt 0:01:06][%cal Bc1g5,Bg5h4,Bh4g3][%mdl 32] aiming for dxc5.} h6 {[%emt 0:00:09]} 14. Bh4 {[%emt 0:01:11] Hoping for dxc5.} g5 {[%emt 0:01:25] Threatens to win with ...cxd4.} 15. Bg3 {[%emt 0:00:33]} Nc4 {[%emt 0:02:30]} 16. b3 {[%emt 0:07:24]} Na3 {[%emt 0:02:07] [#]} 17. Bd3 $146 {[%emt 0:02:34][%mdl 2048] White has some pressure.} ({Predecessor:} 17. Rc1 Nc6 18. Ne2 Nb4 19. Bd3 Bb7 20. Qd2 Re8 21. d5 a5 22. h4 Nxd3 23. Qxd3 {0-1 Hecht,C (2159)-Levin,F (2506) Paderborn op 12th 2015 (4)}) 17... g4 {[%emt 0:03:07]} 18. hxg4 {[%emt 0:32:03]} Bxg4 {[%emt 0:00:41]} 19. e5 {[%emt 0:02:28]} Nc6 {[%emt 0:11:58]} (19... dxe5 $14 20. dxe5 (20. dxc5 Rc8 $14) 20... Rc8) 20. Re4 $18 {[%emt 0:06:07]} h5 {[%emt 0:08:41] [#]} (20... Bxf3 $142 21. Qxf3 Nxd4 22. Rxd4 (22. Qg4 dxe5 23. Bxe5 Qg5 $14) 22... cxd4) 21. Rxg4 $1 {[%emt 0:03:24][%mdl 512]} hxg4 {[%emt 0:01:14]} 22. Nh4 {[%emt 0:00:05]} (22. Bh4 $18 Qd7 23. Nd5) 22... cxd4 $2 {[%emt 0:06:15] This move loses the game for Black.} (22... Qg5 $16) 23. Qxg4 {[%emt 0:01:21][%cal Oh4f5] White wants to mate with Nf5!} Nxe5 {[%emt 0:06:02]} 24. Bxe5 {[%emt 0:00:13]} dxe5 {[%emt 0:00:24]} 25. Nf5 {[%emt 0:00:08][%csl Gf5][%cal Rg4g7]} Qf6 {[%emt 0:02:49]} 26. Nd5 {[%emt 0:00:05] Weighted Error Value: White=0.11 (very precise) /Black=0.56} 1-0

[Event "20th Delhi GM Open 2023"]
[Site "New Delhi"]
[Date "2023.03.23"]
[Round "1.3"]
[White "Vakada Aswin Reddy"]
[Black "Pantsulaia, Levan"]
[Result "0-1"]
[ECO "A36"]
[WhiteElo "1231"]
[BlackElo "2597"]
[Annotator "TA"]
[PlyCount "63"]
[EventDate "2023.03.23"]
[EventType "swiss"]
[EventCountry "IND"]
[SourceTitle "playchess.com"]
[Source "ChessBase"]
[SourceQuality "1"]
[TimeControl "5400+30"]

{[%evp 11,63,8,18,0,0,0,13,0,2,-5,6,0,14,9,20,-6,-7,-16,-23,-22,-17,-38,-38,-45,-30,-24,-31,-84,-80,-84,-75,-104,-108,-107,-110,-371,-369,-374,-324,-916,-901,-903,-891,-828,-370,-360,-343,-2093,-1203,-29963,-29960,-5881,-5102,-1430]} 1. c4 {[%emt 0:00:07]} c5 {[%emt 0:00:14]} 2. g3 {[%emt 0:00:14]} g6 {[%emt 0:00:15]} 3. Bg2 {[%emt 0:00:44]} Bg7 {[%emt 0:00:05]} 4. Nc3 {[%emt 0:00:09]} Nc6 {[%emt 0:00:06]} 5. e3 {[%emt 0:00:30]} d6 {[%emt 0:01:24]} 6. Nge2 {[%emt 0:01:27]} h5 {[%emt 0:00:30]} 7. h4 {[%emt 0:01:46] A36: Symmetrical English vs ...g6: 4 Bg2 Bg7.} Bg4 {[%emt 0:01:30]} 8. O-O {[%emt 0:06:16]} Qc8 {[%emt 0:04:19] [#]} 9. d3 $146 {[%emt 0:09:05] The position is equal.} ({Predecessor:} 9. f3 Bh3 10. Kh2 Bxg2 11. Kxg2 Nf6 12. d4 e6 13. d5 exd5 14. Nxd5 Nxd5 15. Qxd5 {½-½ Turoczi,P (1981)-Sundqvist,C (2022) SB-2019-0-00574}) 9... Nf6 {[%emt 0:03:08]} 10. Qd2 {[%emt 0:04:40]} O-O {[%emt 0:10:38]} 11. b3 {[%emt 0:07:02]} Rb8 {[%emt 0:02:46]} 12. Bb2 {[%emt 0:04:05]} a6 {[%emt 0:00:06]} 13. a4 {[%emt 0:03:38]} Bh3 {[%emt 0:01:47]} 14. Nf4 {[%emt 0:04:23]} Bxg2 {[%emt 0:00:16]} 15. Kxg2 {[%emt 0:00:14]} e6 {[%emt 0:01:25]} 16. d4 {[%emt 0:04:16]} cxd4 {[%emt 0:06:13]} 17. exd4 {[%emt 0:00:30]} d5 {[%emt 0:02:48]} 18. cxd5 {[%emt 0:05:41]} exd5 {[%emt 0:00:10]} 19. Nfxd5 {[%emt 0:04:22]} ({Better is} 19. Rad1 $15) 19... Nxd5 $17 {[%emt 0:00:16]} 20. Nxd5 {[%emt 0:00:11] [#]} Rd8 $1 {[%emt 0:00:49]} 21. Qg5 {[%emt 0:09:05]} Qe6 {[%emt 0:00:14] Dodges Nf6+} (21... Bxd4 $2 22. Bxd4 Rxd5 23. Qxd5 $18) 22. Nf4 {[%emt 0:03:21]} Qxb3 {[%emt 0:00:24]} 23. Bc1 {[%emt 0:08:09][%mdl 8192] White does not recover from this.} (23. Rfb1 $17 {is a better defense.}) 23... Nxd4 $19 {[%emt 0:02:57] White must now prevent ...Nc2.} (23... Rxd4 $2 {is the wrong capture.} 24. Ra3 Qc2 25. Re3 $19) ({Don't blunder} 23... Qc2 $2 24. Be3 $19) 24. Ra3 {[%emt 0:06:16] White is weak on the light squares} Qc4 {[%emt 0:00:07]} 25. Rd1 $2 {[%emt 0:06:19]} (25. Bb2 Qc6+ 26. f3) 25... Qc6+ {[%emt 0:00:14]} 26. f3 {[%emt 0:04:07]} Bf6 {[%emt 0:00:08]} 27. Qa5 {[%emt 0:00:39] [#]} Nxf3 $1 {[%emt 0:00:33][%mdl 512]} 28. Rxd8+ {[%emt 0:03:40]} Bxd8 {[%emt 0:00:17]} ({Stronger than} 28... Rxd8 29. Rxf3 Qxc1 30. Nd5 $17) 29. Qb4 $2 {[%emt 0:00:19]} (29. Qc3 Nxh4+ 30. Kh2 Nf3+ 31. Kg2 Ne1+ {[%mdl 64] Discovered Attack (Double check)} 32. Kh2 Nf3+ 33. Kg2 Nd4+ 34. Qxc6 bxc6 35. Nd3) 29... Nxh4+ {[%emt 0:00:33]} 30. Kf2 {[%emt 0:00:52]} Bb6+ {[%emt 0:00:17]} 31. Ke2 {[%emt 0:03:00]} Qxc1 {[%emt 0:00:08]} 32. Qxb6 {[%emt 0:00:52] An interesting game.   Weighted Error Value: White=0.90/Black=0.74} 0-1

[Event "20th Delhi GM Open 2023"]
[Site "New Delhi"]
[Date "2023.03.23"]
[Round "1.4"]
[White "Kobalia, Mikhail"]
[Black "Yatee Kothari"]
[Result "1-0"]
[ECO "A13"]
[WhiteElo "2577"]
[BlackElo "1230"]
[Annotator "TA"]
[PlyCount "41"]
[EventDate "2023.03.23"]
[EventType "swiss"]
[EventCountry "IND"]
[SourceTitle "playchess.com"]
[Source "ChessBase"]
[SourceQuality "1"]
[TimeControl "5400+30"]

{[%evp 9,41,-25,-11,-27,-18,-17,-10,-22,116,108,104,41,90,81,112,115,170,166,162,166,345,337,350,335,1344,1343,29988,29989,29995,29996,29996,29997,29997,29998]} 1. Nf3 {[%emt 0:00:03]} d5 {[%emt 0:00:12]} 2. c4 {[%emt 0:00:17]} e6 {[%emt 0:02:13]} 3. b3 {[%emt 0:00:32]} c5 {[%emt 0:01:34]} 4. e3 {[%emt 0:00:12]} d4 {[%emt 0:01:35]} 5. exd4 {[%emt 0:00:14]} cxd4 {[%emt 0:00:30]} ({But not} 5... Nc6 6. dxc5 Bxc5 7. Bb2 $14) 6. g3 {[%emt 0:00:04] A13: English Opening: 1...e6.} Nc6 {[%emt 0:01:35]} 7. Bg2 {[%emt 0:00:04]} e5 {[%emt 0:01:21] White must now prevent ...e4.} 8. O-O {[%emt 0:00:17][%cal Of3e5] [#] The position is equal.} e4 $146 {[%emt 0:02:47] [#]} (8... f6 $11) ({Predecessor:} 8... Bd6 9. d3 Nge7 10. Na3 O-O 11. Nc2 b6 12. b4 a6 13. a4 Ng6 14. Ba3 Bf5 {0-1 Ravi,L (2402)-Shetty,R (2308) IND-chB 37th 1999 (9)}) 9. Re1 $1 $16 {[%emt 0:00:41]} Nf6 {[%emt 0:04:25]} 10. d3 {[%emt 0:00:20]} (10. Ng5 $16) 10... Bg4 {[%emt 0:03:08]} (10... Bb4 $14) 11. dxe4 {[%emt 0:00:03][%cal Bd3e4,Be4e5][%mdl 32]} Ne5 {[%emt 0:00:52]} 12. h3 {[%emt 0:02:19]} Nxf3+ {[%emt 0:02:16]} (12... Bxf3 $16 {might work better.} 13. Bxf3 Bc5) 13. Bxf3 $18 {[%emt 0:00:03]} Bxf3 14. Qxf3 {[%emt 0:00:30] e5 would be deadly.} Bc5 $2 (14... Nd7 15. e5 Qb6) 15. e5 {[%emt 0:00:30][%csl LRb7,LRf6]} Qe7 16. Bg5 {[%emt 0:00:30][%mdl 64] [#] Pin} Rd8 $2 (16... Qe6 17. b4 (17. Qxb7 O-O $18) (17. Bxf6 gxf6 18. Qxf6 O-O $18) 17... Nd7 18. bxc5 Nxe5) 17. Nd2 {[%emt 0:00:30]} Qd7 18. exf6+ {[%emt 0:00:30][%mdl 64] Discovered Attack. White mates.} Kf8 19. fxg7+ {[%emt 0:00:30]} Kxg7 20. Qf6+ {[%emt 0:00:30]} Kg8 21. Bh6 {[%emt 0:00:30] Weighted Error Value: White=0.05 (flawless) /Black=0.90} 1-0

[Event "20th Delhi GM Open 2023"]
[Site "New Delhi"]
[Date "2023.03.23"]
[Round "1.5"]
[White "Tomar Nishant Singh"]
[Black "Mchedlishvili, Mikheil"]
[Result "0-1"]
[ECO "A48"]
[WhiteElo "1499"]
[BlackElo "2569"]
[Annotator "TA"]
[PlyCount "46"]
[EventDate "2023.03.23"]
[EventType "swiss"]
[EventCountry "IND"]
[SourceTitle "playchess.com"]
[Source "ChessBase"]
[SourceQuality "1"]
[TimeControl "5400+30"]

{[%evp 12,46,4,-3,17,0,6,-20,7,-70,-67,-143,-150,-143,-147,-278,-272,-262,-255,-358,-340,-635,-656,-1012,-1016,-997,-987,-940,-765,-1824,-1767,-1688,-1633,-29995,-29991,-29997,-29998]} 1. d4 {[%emt 0:02:37]} Nf6 {[%emt 0:00:17]} 2. Bf4 {[%emt 0:00:27]} c5 {[%emt 0:00:59]} 3. e3 {[%emt 0:02:17]} g6 {[%emt 0:01:00]} 4. Nf3 {[%emt 0:00:52]} Bg7 {[%emt 0:00:29]} 5. c3 {[%emt 0:02:25]} b6 {[%emt 0:02:15]} 6. Nbd2 {[%emt 0:02:32]} Bb7 {[%emt 0:00:41]} 7. Bd3 {[%emt 0:05:24]} d6 {[%emt 0:02:22] A48: 1 d4 Nf6 2 Nf3 g6: Torre, London and Colle Systems.} 8. h3 Nbd7 {[%emt 0:03:47][%cal Oe7e5,Bb8d7,Bd7f6,Bf6e4][%mdl 32]} 9. Qc2 {[%emt 0:03:28]} O-O {[%emt 0:01:34] The position is equal.} 10. O-O-O {[%emt 0:06:59]} (10. Bh2 $11) 10... Rc8 {[%emt 0:03:31] [#]} 11. Kb1 $146 {[%emt 0:02:22]} (11. a3 $15) ({Predecessor:} 11. Rde1 Nd5 12. g4 cxd4 13. exd4 Nxf4 14. Be4 d5 15. Bd3 Nxd3+ 16. Qxd3 Nf6 17. Ne5 Ne4 18. f3 Nf2 {0-1 Hedrich,G (1547)-Buehler,S (1776) Wiesbaden op 29th 2017 (2)}) 11... Nd5 $17 {[%emt 0:03:06] [#] Threatens to win with ...cxd4.} 12. Be4 {[%emt 0:05:08]} N7f6 {[%emt 0:00:45]} 13. dxc5 {[%emt 0:06:28]} (13. Bxd5 $17 {is a better defense.} Nxd5 14. Bg3) 13... Nxe4 {[%emt 0:02:59]} (13... bxc5 14. Bxd5 Nxd5 15. Nc4 $17) 14. Nxe4 {[%emt 0:00:41]} bxc5 {[%emt 0:01:53] White must now prevent ...Rb8.} 15. Bg3 {[%emt 0:00:36]} (15. Qb3 $142 Qb6 16. Rhe1) 15... Qa5 {[%emt 0:06:59]} 16. Bxd6 $2 {[%emt 0:37:53]} (16. Nfd2 c4 17. Rc1) 16... exd6 $19 {[%emt 0:00:48]} 17. Nxd6 {[%emt 0:04:47] [#]} Nxc3+ $1 {[%emt 0:01:09][%mdl 512]} 18. bxc3 {[%emt 0:00:05]} Rb8 {[%emt 0:02:39] ( -> ...Qa3)} 19. Kc1 {[%emt 0:11:01]} Bxf3 {[%emt 0:00:47]} ({Inferior is} 19... Qxc3 20. Qxc3 Bxc3 21. Nxb7 Rxb7 22. Kc2 $11) 20. gxf3 {[%emt 0:00:51]} Qa3+ {[%emt 0:00:08]} ({Not} 20... Qxc3 21. Qxc3 Bxc3 22. Kc2 $11) ({Stronger than} 20... Bxc3 21. Nc4 Qb4 22. Qb3 $15) 21. Kd2 {[%emt 0:00:03]} Rb2 {[%emt 0:00:07]} 22. Nc4 {[%emt 0:00:05]} Rxc2+ {[%emt 0:00:06]} 23. Kxc2 {[%emt 0:00:04]} Qxc3+ {[%emt 0:00:06] White got outplayed after the opening.   Weighted Error Value: White=1.42/Black=0.20 (precise)} 0-1

[Event "20th Delhi GM Open 2023"]
[Site "New Delhi"]
[Date "2023.03.23"]
[Round "1.6"]
[White "Murzin, Volodar"]
[Black "Subramanian, T.V."]
[Result "1-0"]
[ECO "D02"]
[WhiteElo "2554"]
[BlackElo "1227"]
[Annotator "TA"]
[PlyCount "63"]
[EventDate "2023.03.23"]
[EventType "swiss"]
[EventCountry "IND"]
[SourceTitle "playchess.com"]
[Source "ChessBase"]
[SourceQuality "1"]
[TimeControl "5400+30"]

{[%evp 9,62,17,50,49,80,94,93,89,97,46,75,79,72,81,80,87,106,100,108,101,96,104,137,110,256,254,255,235,264,267,267,272,318,275,570,579,945,944,900,811,1462,1427,1532,1269,1403,1222,2031,1804,29990,29991,29993,29993,29997,29998,29999]} 1. Nf3 {[%emt 0:00:03]} d5 {[%emt 0:00:11]} 2. g3 {[%emt 0:00:04]} Nf6 {[%emt 0:00:51]} 3. Bg2 {[%emt 0:00:05]} Nbd7 {[%emt 0:00:26]} 4. d4 {[%emt 0:05:09]} c6 {[%emt 0:01:26]} 5. O-O {[%emt 0:00:07]} h5 {[%emt 0:02:05]} 6. Nc3 {[%emt 0:04:36] [#] D02: 1 d4 d5 2 Nf3 sidelines, including 2...Nf6 3 g3 and 2...Nf6 3 Bf4.} b5 $146 {[%emt 0:04:03]} ({Predecessor:} 6... g6 7. Bf4 Bg7 8. Qd2 Qa5 9. Rfb1 b5 10. b4 Qb6 11. Ne5 O-O 12. h3 Nxe5 13. Bxe5 {½-½ Franz,I (1377)-Schweitzer,P (1532) Bad Griesbach Seniors op 3rd 2000 (2)}) 7. a3 {[%emt 0:00:45]} Bb7 {[%emt 0:00:17]} 8. h4 {[%emt 0:03:29] White is better.} e6 {[%emt 0:00:45]} 9. Bf4 {[%emt 0:01:09]} (9. e4 $16) 9... Be7 {[%emt 0:02:54]} 10. Ng5 {[%emt 0:00:51]} Nh7 {[%emt 0:04:14]} 11. Nxh7 {[%emt 0:00:38]} Rxh7 {[%emt 0:00:09]} 12. e4 {[%emt 0:01:03]} Nf6 {[%emt 0:01:20]} 13. exd5 {[%emt 0:00:35]} exd5 {[%emt 0:00:40]} 14. Re1 {[%emt 0:00:08]} Kf8 {[%emt 0:00:26]} 15. Bg5 {[%emt 0:01:13] White is much more active. The black rooks are badly placed.} Kg8 {[%emt 0:10:43]} 16. Ne2 Ne4 {[%emt 0:04:57] [#] This costs Black the game.} (16... Bc8 $16 {is a better defense.}) 17. Bxe7 $1 $18 {[%emt 0:00:50]} Qxe7 {[%emt 0:00:02] [#]} 18. Nf4 $1 {[%emt 0:00:26]} Qd7 {[%emt 0:05:05]} 19. Bxe4 {[%emt 0:01:48]} (19. Nxh5 $6 a5 20. Nf4 (20. Bxe4 dxe4 21. Nf4 Re8 $16) 20... f5 $16) 19... dxe4 {[%emt 0:07:38] Black is weak on the dark squares} 20. Rxe4 {[%emt 0:00:02][%cal Be1e4,Be4e7,Be7b7,Bb7b8][%mdl 32]} ({Not} 20. Nxh5 c5 $11) 20... c5 {[%emt 0:08:53]} 21. d5 {[%emt 0:00:06][%cal Od1d3]} (21. dxc5 $2 {perishes.} Qxd1+ 22. Rxd1 Bxe4 $19) 21... g6 $2 {[%emt 0:02:52]} (21... Rh6 22. b3 (22. Nxh5 Qf5 $11) 22... Re8) 22. Qe2 {[%emt 0:00:27]} Rg7 {[%emt 0:06:37]} 23. Re7 {[%emt 0:00:13][%mdl 64] Deflection} Qc8 {[%emt 0:01:00]} 24. Qe5 {[%emt 0:00:10]} Qb8 {[%emt 0:02:16]} 25. Qf6 {[%emt 0:00:19]} Rh7 {[%emt 0:02:54]} 26. Rae1 {[%emt 0:00:19] Threatens to win with d6.} Qd8 {[%emt 0:03:10]} 27. Qg5 {[%emt 0:00:44]} Rb8 {[%emt 0:01:22] [#]} 28. Rxb7 $1 {[%emt 0:00:06][%cal Of4g6][%mdl 576] Intending Nxg6! and mate. Deflection} Qxg5 {[%emt 0:00:58]} (28... Rg7 29. Rxb8) 29. Rxb8+ {[%emt 0:00:04] White mates.} Kg7 {[%emt 0:00:21]} 30. hxg5 {[%emt 0:00:02]} h4 {[%emt 0:00:25]} 31. Re7 {[%emt 0:00:05][%csl Gd5,Ge7][%cal Rf4e6]} hxg3 {[%emt 0:00:12]} 32. Ne6# {[%emt 0:00:03] Weighted Error Value: White=0.05 (flawless) /Black=0.73} 1-0

[Event "20th Delhi GM Open 2023"]
[Site "New Delhi"]
[Date "2023.03.23"]
[Round "1.7"]
[White "Vidhi Angelina"]
[Black "Savchenko, Boris"]
[Result "0-1"]
[ECO "D85"]
[WhiteElo "1226"]
[BlackElo "2552"]
[Annotator "TA"]
[PlyCount "61"]
[EventDate "2023.03.23"]
[EventType "swiss"]
[EventCountry "IND"]
[SourceTitle "playchess.com"]
[Source "ChessBase"]
[SourceQuality "1"]
[TimeControl "5400+30"]

{[%evp 14,61,34,-14,-16,-36,-34,-39,0,-133,-127,-127,-119,-124,-94,-106,-99,-104,-93,-97,-98,-155,-138,-258,-254,-263,-267,-583,-565,-581,-581,-610,-567,-626,-597,-657,-647,-1208,-1272,-1392,-1414,-1408,-1319,-1424,-1345,-1767,-1703,-1862,-1541,-1250]} 1. Nf3 {[%emt 0:04:56]} g6 {[%emt 0:06:44]} 2. d4 {[%emt 0:01:01]} Nf6 {[%emt 0:03:22]} 3. c4 {[%emt 0:03:37]} Bg7 {[%emt 0:01:43]} 4. Nc3 {[%emt 0:00:00]} d5 {[%emt 0:01:16]} 5. cxd5 {[%emt 0:01:12]} Nxd5 {[%emt 0:00:09]} 6. e4 {[%emt 0:00:22]} Nxc3 {[%emt 0:00:18]} 7. bxc3 {[%emt 0:00:13]} c5 {[%emt 0:00:08]} 8. Bb2 {[%emt 0:04:15] 8.h3 is a critical line.} ({Of course not} 8. dxc5 Bxc3+ 9. Bd2 Bxa1 10. Qxa1 f6 $15) (8. Be3 $14) 8... cxd4 {[%emt 0:04:57] [#] D85: Exchange Grünfeld: Unusual White 7th moves and lines with 7 Nf3.} 9. Nxd4 $146 {[%emt 0:05:12]} ({Predecessor:} 9. cxd4 Qa5+ 10. Qd2 Qxd2+ 11. Nxd2 Nc6 12. e5 O-O 13. Bc4 Rd8 14. Nf3 Bg4 15. Ng5 e6 16. h3 {0-1 Kaiyrbekov,R (2338)-Mogirzan,M (1813) Titled Tuesday intern op 13th July blitz 2021 (5)}) 9... Nd7 {[%emt 0:01:48]} 10. Bc4 {[%emt 0:02:01][%cal Oc4f7] [#] Bxf7+! is the strong threat.} Qc7 {[%emt 0:01:09] Black is slightly better.} 11. Qa4 {[%emt 0:12:06]} (11. Bxf7+ $11 {keeps the balance.} Kxf7 12. Qb3+ Ke8 13. Ne6) 11... O-O $17 {[%emt 0:00:35] aiming for ...Nb6.} 12. Be2 {[%emt 0:07:14]} Nc5 {[%emt 0:01:44][%csl LRa4,LRe4]} 13. Qc2 {[%emt 0:03:55]} b6 {[%emt 0:00:06]} 14. O-O {[%emt 0:02:40]} Bb7 {[%emt 0:00:24]} 15. Bf3 {[%emt 0:00:35]} Rac8 {[%emt 0:03:30] Black is more active.} 16. Rfe1 {[%emt 0:02:52]} a6 {[%emt 0:06:03]} 17. Rac1 {[%emt 0:09:35]} ({Better is} 17. c4) 17... Rfd8 {[%emt 0:00:23]} 18. h3 {[%emt 0:01:26]} (18. Red1 $17 {is a better defense.}) 18... e5 $19 {[%emt 0:00:15][%cal Be7e5,Be5d4,Bd4d3][%mdl 32]} 19. Bg4 {[%emt 0:01:09]} exd4 {[%emt 0:00:16]} 20. Bxc8 $2 {[%emt 0:00:18]} (20. cxd4 {nothing else works.} Ne6 {[%mdl 64] Discovered Attack} 21. Qb3) 20... d3 {[%emt 0:00:07] Black is clearly winning.} ({And not} 20... Rxc8 21. cxd4 Ne6 22. Qd2 $15) 21. Qd2 {[%emt 0:00:51]} Bxc8 {[%emt 0:00:06]} 22. Ba3 {[%emt 0:00:56]} Be6 {[%emt 0:00:11]} 23. Bxc5 {[%emt 0:01:27]} Qxc5 {[%emt 0:00:07]} 24. Red1 {[%emt 0:03:03]} b5 {[%emt 0:00:39]} 25. Qe3 {[%emt 0:04:24]} Qxe3 {[%emt 0:00:18]} 26. fxe3 {[%emt 0:00:11]} Bxa2 {[%emt 0:00:04]} 27. Kf2 {[%emt 0:01:24]} a5 {[%emt 0:00:06][%cal Ba6a5,Ba5a4,Ba4a3][%mdl 32] White must now prevent ...Bb3.} 28. Kf3 {[%emt 0:01:27]} a4 {[%emt 0:00:03] [#] ...Bb3 would be deadly.} 29. Rd2 {[%emt 0:03:09]} Bc4 {[%emt 0:00:37]} 30. g4 {[%emt 0:00:30]} a3 {[%emt 0:00:07]} 31. h4 {[%emt 0:01:03] Weighted Error Value: White=1.01/Black=0.08 (flawless)} 0-1